{"text_format":"1","workbook":"xlsx","n_sheets":5,"sheets":["Övergripande information","Enhet  ","Läkare","Förklaringar för enhetsdel","Förklaringar för läkardel"],"not_rendered":{"charts":0,"images":1,"macros":1,"external_links":0,"defined_names":12,"comments":0,"pivot_tables":0},"unopened":[],"bounds":{"document_bytes":16777216,"sheet_cells":100000,"rows_first":2000,"rows_last":500,"rows_between":2000,"halvings":0,"cell_chars":16384,"cell_head_chars":4096},"cells_cut":0,"cells_raw":0,"read":"whole","date_system":"1900"}

{"sheet":"Övergripande information","index":0,"n_rows":21,"n_cols":1,"rows_kept":21,"cut":false,"hidden":false,"merged":[]}
[]
[]
["Planeringsverktyg – stöd för arbete med fast läkarkontakt \nSom en del av det samlade nationella stödet till verksamhetschefer och vårdgivare för lämplig fördelning av patientansvar på funktionen fast läkarkontakt har ett planeringsverktyg tagits fram. \n\n"]
[]
["Verktygets huvudsakliga syfte"]
["Det primära syftet med planeringsverktyget är att stödja kartläggning, analys och planering för fast läkarkontakt. Det görs utifrån den lokala vårdenhetens läkarresurser samt patienternas vårdbehov, vårdkonsumtion. Verktyget syftar också till att främja dialogen mellan verksamhetschef och läkare om läkarens arbetsmiljö och förutsättningar för att analysera vad som är en lämplig fördelning av patientansvar för att kunna upprätthålla kontinuitet som fast läkarkontakt. "]
[]
["Verktygets olika beståndsdelar"]
["Verktyget består av en enhetsdel och en läkardel för inmatning av data. Det görs för att få fram ett riktvärde dels för hur många patienter som vårdcentralen kan vara fast läkarkontakt för och dels för hur många en enskild läkare kan vara fast läkarkontakt för. De data som läggs in kan vara från föregående år."]
["I enhetsdelen förs data in kring enheten i helhet såsom totalt antal patienter, tidsåtgång för kontakter på enheten eller tidsåtgång för direkta patientkontakter för att nämna några. I läkardelen förs data in som synliggör varje enskild läkares förutsättningar att vara fast läkarkontakt, exempelvis tjänstgöringsgrad, veckobaserade aktiviteter eller indirekta patientaktiviteter."]
[]
["Resultatet och vidare arbete"]
["De inmatade uppgifterna ger ett riktvärde på antal möjliga patienter som enheten och den enskilda läkaren kan erbjuda fast läkarkontakt till. Viktigt att ta i beaktande är att resultatet bör användas som underlag för att möjliggöra för planering, reflektion, analys och dialog kring fast läkarkontakt. "]
["Verksamhetschefen kan tillsammans med läkaren reflektera över resultatet för att förstå vad det innebär för läkarens arbete med att erbjuda fast läkarkontakt samt vilka åtgärder som kan behöva vidtas för en god arbetsmiljö och lämplig fördelning av patientansvar. "]
["Resultatet från verktyget behöver analyseras vidare tillsammans med andra uppgifter som t.ex. vilka patienter som kan ha störst behov en fast läkarkontakt eller för vilka kontaktvägar och möjligheter som patienterna på enheten har idag för att komma i kontakt med läkare."]
[]
["Uppföljning "]
["Resultatet från verktyget kan följas upp av verksamhetschefen under året. Dels för att planera och följa enhetens arbete med fast läkarkontakt, dels för att kunna skapa förutsättningarna för den enskilde läkarens arbete att tillgodose de patienter med störst behov en fast läkarkontakt."]
[]
["Användning för olika målgrupper"]
["Planeringsverktygets primära målgrupp är verksamhetschefer som är i behov av stöd för att analysera och planera för funktionen fast läkarkontakt samt regioner som beställer primärvård. Planeringsverktyget möjliggör även verksamhetschefer att föra dialog med respektive läkare om dess förutsättningar för att vara fast läkarkontakt.  "]

{"sheet":"Enhet  ","index":1,"n_rows":45,"n_cols":22,"rows_kept":45,"cut":false,"hidden":false,"merged":[]}
[]
[null,null,null,null,null,null,null,null,null,null,null,null,null,null,"Beräkningar till grund för resultat"]
[null,"Planeringsverktyg enhet "]
[null,null,null,null,null,null,null,null,null,null,null,null,null,null,"Arbetstid standard",null,null,"Veckoarbetstid",null,"Antal veckor per år"]
[null,null,null,null,null,null,null,null,null,null,null,null,null,null,"Standard en heltidstjänst",null,null,1.6666666666666667,null,45]
[]
[null,null,null,null,null,null,null,null,null,null,null,null,null,null,null,null,null,null,null,null,"Kontakter","Pat.konakt"]
[null,"1. Antal invånare listade på enheten",null,null,null,null,null,"6. Veckobaserad samverkan",null,null,null,"[tim: min]",null,null,"Tidsåtgång direkta patientkontakter (baserat på fält 3 och 4)",null,null,null,"[tim: min]","Andel","per listad","per vecka"]
[null,"Antalet invånare",null,null,null,0,null,"Intern konsultation och samverkan",null,null,null,"00:00:00",null,null,"Planerade besök, vårdcentral",null,null,null,{"$f":"F16*F25","v":0},{"$f":"IF($S$15>0,S9/$S$15,0)","v":0},{"$f":"IF($F$9>0,$F$16/$F$9,0)","v":0},{"$f":"IF(F25>0,T9*$L$29/F25,0)","v":0}]
[null,null,null,null,null,null,null,"Extern konsultation och samverkan",null,null,null,"00:00:00",null,null,"Planerade hembesök",null,null,null,0,0,{"$f":"IF($F$9>0,$F$17/$F$9,0)","v":0},0]
[null,"2. Produktiv tid",null,null,null,null,null,"Samverkan kommun",null,null,null,"00:00:00",null,null,"Akuta besök, vårdcentral",null,null,null,0,0,{"$f":"IF($F$9>0,$F$18/$F$9,0)","v":0},0]
[null,"Tjänstgöringsgrad ",null,null,null,0,null,"Övrigt",null,null,null,"00:00:00",null,null,"Akuta hembesök",null,null,null,0,0,{"$f":"IF($F$9>0,$F$19/$F$9,0)","v":0},0]
[null,"Veckoarbetstid justerad",null,null,null,{"$f":"(F12*R5)","v":0},null,"Summa",null,null,null,{"$f":"SUM(L9:L12)","v":"00:00:00"},null,null,"Telefonärenden",null,null,null,0,{"$f":"IF($S$15>0,S13/$S$15,0)","v":0},{"$f":"IF($F$9>0,$F$20/$F$9,0)","v":0},0]
[null,null,null,null,null,null,null,null,null,null,null,null,null,null,"Digitala vårdmöten",null,null,null,0,0,{"$f":"IF($F$9>0,$F$21/$F$9,0)","v":0},0]
[null,"3. Patientkontakter, totalt för enheten per år:",null,null,null,"Antal",null,"7. Veckobaserade aktiviteter",null,null,null,"[tim: min]",null,null,"Summa",null,null,null,{"$f":"SUM(S9:S14)","v":0},{"$f":"SUM(T9:T14)","v":0},{"$f":"SUM(U9:U14)","v":0},{"$f":"SUM(V9:V14)","v":0}]
[null,"Planerade besök, vårdcentral",null,null,null,0,null,"Rast",null,null,null,"00:00:00",null,null,"Förhållande mellan tid för indirekt och direkt pat.kontakt",null,null,null,{"$f":"L30*T5","v":0},{"$f":"IF((S15+S16)=0,0,S16/(S15+S16))","v":0}]
[null,"Planerade hembesök",null,null,null,0,null,"Möte (kring arbetsplatsen)",null,null,null,"00:00:00"]
[null,"Akuta besök, vårdcentral",null,null,null,0,null,"Handledning",null,null,null,"00:00:00",null,null,"Tidsåtgång direkta patientkontakter, baserat på tillgänglig tid,",null,null,null,null,null,"Motsvarande","Motsvarande"]
[null,"Akuta hembesök",null,null,null,0,null,"Sidouppdrag",null,null,null,"00:00:00",null,null,"justerat för behovet av ökad tid för indirekt patientarbete",null,null,null,"[tim: min]","Justerat tid*","kontakter","listade"]
[null,"Telefonärenden",null,null,null,0,null,"Professionell utveckling och fortbildning",null,null,null,"00:00:00",null,null,{"$f":"B16","v":"Planerade besök, vårdcentral"},null,null,null,{"$f":"T9*$S$31","v":0},{"$f":"S20-T9*$S$27","v":0},{"$f":"IF(F25>0,T20/F25,0)","v":0}]
[null,"Digitala vårdmöten",null,null,null,0,null,"Forskning och enhetens utvecklingsarbete",null,null,null,"00:00:00",null,null,"Planerade hembesök",null,null,null,0,0,0]
[null,"Summa",null,null,null,{"$f":"SUM(F16:F21)","v":0},null,"Övrigt",null,null,null,"00:00:00",null,null,"Akuta besök, vårdcentral",null,null,null,0,0,0,"         "]
[null,null,null,null,null,null,null,"Summa",null,null,null,{"$f":"SUM(L16:L22)","v":"00:00:00"},null,null,"Akuta hembesök",null,null,null,0,0,0]
[null,"4. Tidsåtgång direkta patientkontakter",null,null,null,"[tim: min]",null,null,null,null,null,null,null,null,"Telefonärenden",null,null,null,0,0,0]
[null,"Planerade besök, vårdcentral",null,null,null,"00:00:00",null,null,null,null,null,null,null,null,"Digitala vårdmöten",null,null,null,0,0,0]
[null,"Planerade hembesök",null,null,null,"00:00:00",null,"Resultat",null,null,null,null,null,null,"Summa",null,null,null,{"$f":"SUM(S20:S25)","v":0},{"$f":"SUM(T20:T25)","v":0},{"$f":"SUM(U20:U25)","v":0},{"$f":"IF(U15>0,U26/U15,0)","v":0}]
[null,"Akuta besök, vårdcentral",null,null,null,"00:00:00",null,null,null,null,null,null,null,null,"Hur mycket mer tid behövs för indirekt arbete?",null,null,null,{"$f":"(S31+S32)*T16","v":0}]
[null,"Akuta hembesök",null,null,null,"00:00:00",null,"8. Summering enhetens tid per vecka",null,null,null,"[tim: min]",null,null,"* Tid [tim:min] justerad för det extra indirekta patientarbete fler patienter kräver"]
[null,"Telefonärenden",null,null,null,"00:00:00",null,"Tid per vecka för direkta patientkontakter",null,null,null,{"$f":"F13-(L30+L31+L32)","v":0}]
[null,"Digitala vårdmöten",null,null,null,"00:00:00",null,"Veckobaserat indirekt patientarbete",null,null,null,{"$f":"F33","v":0},null,null,"Summering av läkarens tid för aktiviteter år",null,null,null,"[tim: min]","Justerat tid","Andel","Ny tid *"]
[null,null,null,null,null,null,null,"Veckobaserad samverkan",null,null,null,{"$f":"L13","v":0},null,null,"Tid per år för direkta patientkontakter",null,null,null,{"$f":"L29*T5","v":0},{"$f":"T26+S32","v":0},{"$f":"IF($T$35>0,T31/$T$35,0)","v":0},{"$f":"T31/T5","v":0}]
[null,"5. Veckobaserat indirekt patientarbete",null,null,null,"[tim: min]",null,"Veckobaserade aktiviteter",null,null,null,{"$f":"L23","v":0},null,null,"Tid per år för indirekta patientarbete",null,null,null,{"$f":"L30*T5+T27","v":0},{"$f":"S27","v":0},{"$f":"IF($T$35>0,T32/$T$35,0)","v":0},{"$f":"T32/T5","v":0}]
[null,"Indirekt patientarbete ",null,null,null,"00:00:00",null,"Summa",null,null,null,{"$f":"SUM(L29:L32)","v":0},null,null,"Tid per år för samverkan",null,null,null,{"$f":"L31*T5","v":0},{"$f":"S33","v":0},{"$f":"IF($T$35>0,T33/$T$35,0)","v":0},{"$f":"T33/T5","v":0}]
[null,null,null,null,null,null,null,null,null,null,null,null,null,null,"Tid per år för aktiviteter",null,null,null,{"$f":"L32*T5","v":0},{"$f":"S34","v":0},{"$f":"IF($T$35>0,T34/$T$35,0)","v":0},{"$f":"T34/T5","v":0}]
[null,null,null,null,null,null,null,"9. Resultat",null,null,"Antal","Ändring i %",null,null,"Summa",null,null,null,{"$f":"SUM(S31:S34)","v":0},{"$f":"SUM(T31:T34)","v":0},{"$f":"SUM(U31:U34)","v":0},{"$f":"SUM(V31:V34)","v":0}]
[null,null,null,null,null,null,null,"Antal invånare enheten kan erbjuda  ",null,null,null,null,null,null,"* Ny tid [tim:min] per vecka, beräknad på den ökning av antal listade som redovisas i fält 8. Jämför med fält 9."]
[null,null,null,null,null,null,null,"kontinuerligt patientansvar för",null,null,{"$f":"V26","v":0},{"$f":"T45","v":0}]
[null,null,null,null,null,null,null,null,null,null,null,null,null,null,null,null,null,null,null,"Andel av"]
[null,null,null,null,null,null,null,null,null,null,null,null,null,null,"Tid indirekta patientaktiviteter/direkta patientkontakter år",null,null,null,"[tim: min]","patienttid"]
[null,null,null,null,null,null,null,null,null,null,null,null,null,null,"Tid per år för indirekt och direkt patient-arbete/kontakter",null,null,null,{"$f":"T31+T32","v":0},{"$f":"IF((S40+S41)=0,0,S40/(S40+S41))","v":0}]
[null,null,null,null,null,null,null,null,null,null,null,null,null,null,"Tid per år för indirekt patientarbete",null,null,null,{"$f":"T32","v":0}]
[]
[null,null,null,null,null,null,null,null,null,null,null,null,null,null,{"$f":"\"Utifrån \"&ROUND(U15,1)&\" kontakter per invånare\"","v":"Utifrån 0 kontakter per invånare"},null,null,null,"Antal","Andel"]
[null,null,null,null,null,null,null,null,null,null,null,null,null,null,{"$f":"\"och \" &F9&\" antal invånare\"","v":"och 0 antal invånare"},null,null,null,"Antal","Andel"]
[null,null,null,null,null,null,null,null,null,null,null,null,null,null,"Möjligt antal invånare som läkaren kan ha kont. patientansvar för",null,null,null,{"$f":"V26","v":0},{"$f":"IF(F9>0,S45/F9,0)","v":0}]

{"sheet":"Läkare","index":2,"n_rows":45,"n_cols":22,"rows_kept":45,"cut":false,"hidden":false,"merged":[]}
[]
[null,null,null,null,null,null,null,null,null,null,null,null,null,null,"Beräkningar till grund för resultat"]
[null,"Planeringsverktyg läkare "]
[null,null,null,null,null,null,null,null,null,null,null,null,null,null,"Veckoarbetstid standard heltid"]
[null,null,null,null,null,null,null,null,null,null,null,null,null,null,"Veckoarbetstid heltid",null,null,null,1.6666666666666667]
[]
[null,null,null,null,null,null,null,null,null,null,null,null,null,null,null,null,null,null,null,null,"Kontakter","Pat.konakt"]
[null,"1. Antal invånare kopplade till läkaren",null,null,null,null,null,"6. Veckobaserad samverkan",null,null,null,"[tim: min]",null,null,"Tidsåtgång direkta patientkontakter (baserat på fält 3 och 4)",null,null,null,"[tim: min]","Andel","per listad","per vecka"]
[null,"Antalet invånare",null,null,null,0,null,"Intern konsultation och samverkan",null,null,null,"00:00:00",null,null,"Planerade besök, vårdcentral",null,null,null,{"$f":"F17*F26","v":0},{"$f":"IF($S$15>0,S9/$S$15,0)","v":0},{"$f":"IF($F$9>0,$F$17/$F$9,0)","v":0},{"$f":"IF(F26>0,T9*$L$29/F26,0)","v":0}]
[null,null,null,null,null,null,null,"Extern konsultation och samverkan",null,null,null,"00:00:00",null,null,"Planerade hembesök",null,null,null,{"$f":"F18*F27","v":0},0,{"$f":"IF($F$9>0,$F$18/$F$9,0)","v":0},0]
[null,"2. Produktiv tid",null,null,null,null,null,"Samverkan kommun",null,null,null,"00:00:00",null,null,"Akuta besök, vårdcentral",null,null,null,0,0,{"$f":"IF($F$9>0,$F$19/$F$9,0)","v":0},0]
[null,"Tjänstgöringsgrad",null,null,null,0,null,"Övrigt",null,null,null,"00:00:00",null,null,"Akuta hembesök",null,null,null,0,0,{"$f":"IF($F$9>0,$F$20/$F$9,0)","v":0},0]
[null,"Tillgängligt antal veckor per år",null,null,null,45,null,"Summa",null,null,null,{"$f":"SUM(L9:L12)","v":"00:00:00"},null,null,"Telefonärenden",null,null,null,0,0,{"$f":"IF($F$9>0,$F$21/$F$9,0)","v":0},0]
[null,"Veckoarbetstid justerad",null,null,null,{"$f":"(F12*S5)","v":0},null,null,null,null,null,null,null,null,"Digitala vårdmöten",null,null,null,0,0,{"$f":"IF($F$9>0,$F$22/$F$9,0)","v":0},0]
[null,null,null,null,null,null,null,"7. Veckobaserade aktiviteter",null,null,null,"[tim: min]",null,null,"Summa",null,null,null,{"$f":"SUM(S9:S14)","v":0},{"$f":"SUM(T9:T14)","v":0},{"$f":"SUM(U9:U14)","v":0},{"$f":"SUM(V9:V14)","v":0}]
[null,"3. Patientkontakter, totalt för läkaren per år:",null,null,null,"Antal",null,"Rast",null,null,null,"00:00:00",null,null,"Förhållande mellan tid för indirekt och direkt pat.kontakt",null,null,null,{"$f":"L30*F13","v":0},{"$f":"IF((S15+S16)=0,0,S16/(S15+S16))","v":0}]
[null,"Planerade besök, vårdcentral",null,null,null,0,null,"Möte (kring arbetsplatsen)",null,null,null,"00:00:00"]
[null,"Planerade hembesök",null,null,null,0,null,"Handledning",null,null,null,"00:00:00",null,null,"Tidsåtgång direkta patientkontakter, baserat på tillgänglig tid,",null,null,null,null,null,"Motsvarande","Motsvarande"]
[null,"Akuta besök, vårdcentral",null,null,null,0,null,"Sidouppdrag",null,null,null,"00:00:00",null,null,"justerat för behovet av ökad tid för indirekt patientarbete",null,null,null,"[tim: min]","Justerat tid*","kontakter","listade"]
[null,"Akuta hembesök",null,null,null,0,null,"Professionell utveckling och fortbildning",null,null,null,"00:00:00",null,null,{"$f":"B17","v":"Planerade besök, vårdcentral"},null,null,null,{"$f":"T9*$S$31","v":0},{"$f":"S20-T9*$S$27","v":0},{"$f":"IF(F26>0,T20/F26,0)","v":0}]
[null,"Telefonärenden",null,null,null,0,null,"Forskning och enhetens utvecklingsarbete",null,null,null,"00:00:00",null,null,"Planerade hembesök",null,null,null,0,0,{"$f":"IF(F27>0,T21/F27,0)","v":0}]
[null,"Digitala vårdmöten",null,null,null,0,null,"Övrigt",null,null,null,"00:00:00",null,null,"Akuta besök, vårdcentral",null,null,null,0,0,0,"         "]
[null,"Summa",null,null,null,{"$f":"SUM(F17:F22)","v":0},null,"Summa",null,null,null,{"$f":"SUM(L16:L22)","v":"00:00:00"},null,null,"Akuta hembesök",null,null,null,0,0,0]
[null,null,null,null,null,null,null,null,null,null,null,null,null,null,"Telefonärenden",null,null,null,0,0,0]
[null,"4. Tidsåtgång direkta patientkontakter",null,null,null,"[tim: min]",null,null,null,null,null,null,null,null,"Digitala vårdmöten",null,null,null,0,0,0]
[null,"Planerade besök, vårdcentral",null,null,null,"00:00:00",null,"Resultat",null,null,null,null,null,null,"Summa",null,null,null,{"$f":"SUM(S20:S25)","v":0},{"$f":"SUM(T20:T25)","v":0},{"$f":"SUM(U20:U25)","v":0},{"$f":"IF(U15>0,U26/U15,0)","v":0}]
[null,"Planerade hembesök",null,null,null,"00:00:00",null,null,null,null,null,null,null,null,"Hur mycket mer tid behövs för indirekt arbete?",null,null,null,{"$f":"(S31+S32)*T16","v":0}]
[null,"Akuta besök, vårdcentral",null,null,null,"00:00:00",null,"8. Summering läkarens tid per vecka",null,null,null,"[tim: min]",null,null,"* Tid [tim:min] justerad för det extra indirekta patientarbete fler patienter kräver"]
[null,"Akuta hembesök",null,null,null,"00:00:00",null,"Tid per vecka för direkta patientkontakter",null,null,null,{"$f":"F14-(L30+L31+L32)","v":0}]
[null,"Telefonärenden",null,null,null,"00:00:00",null,"Veckobaserat indirekt patientarbete",null,null,null,{"$f":"F34","v":0},null,null,"Summering av läkarens tid för aktiviteter år",null,null,null,"[tim: min]","Justerat tid","Andel","Ny tid *"]
[null,"Digitala vårdmöten",null,null,null,"00:00:00",null,"Veckobaserad samverkan",null,null,null,{"$f":"L13","v":0},null,null,"Tid per år för direkta patientkontakter",null,null,null,{"$f":"L29*F13","v":0},{"$f":"T26+S32","v":0},{"$f":"IF($T$35>0,T31/$T$35,0)","v":0},{"$f":"T31/F13","v":0}]
[null,null,null,null,null,null,null,"Veckobaserade aktiviteter",null,null,null,{"$f":"L23","v":0},null,null,"Tid per år för indirekta patientarbete",null,null,null,{"$f":"L30*F13+T27","v":0},{"$f":"S27","v":0},{"$f":"IF($T$35>0,T32/$T$35,0)","v":0},{"$f":"T32/F13","v":0}]
[null,"5. Veckobaserat indirekt patientarbete",null,null,null,"[tim: min]",null,"Summa",null,null,null,{"$f":"SUM(L29:L32)","v":0},null,null,"Tid per år för samverkan",null,null,null,{"$f":"L31*F13","v":0},{"$f":"S33","v":0},{"$f":"IF($T$35>0,T33/$T$35,0)","v":0},{"$f":"T33/F13","v":0}]
[null,"Indirekt patientarbete ",null,null,null,"00:00:00",null,null,null,null,null,null,null,null,"Tid per år för aktiviteter",null,null,null,{"$f":"L32*F13","v":0},{"$f":"S34","v":0},{"$f":"IF($T$35>0,T34/$T$35,0)","v":0},{"$f":"T34/F13","v":0}]
[null,null,null,null,null,null,null,"9. Resultat",null,null,"Antal","Ändring i % ",null,null,"Summa",null,null,null,{"$f":"SUM(S31:S34)","v":0},{"$f":"SUM(T31:T34)","v":0},{"$f":"SUM(U31:U34)","v":0},{"$f":"SUM(V31:V34)","v":0}]
[null,null,null,null,null,null,null,"Antal invånare läkaren kan ha ",null,null,null,null,null,null,"* Ny tid [tim:min] per vecka, beräknad på den ökning av antal listade som redovisas i fält 8. Jämför med fält 9."]
[null,null,null,null,null,null,null,"kontinuerligt patientansvar för",null,null,{"$f":"V26","v":0},{"$f":"T45","v":0}]
[null,null,null,null,null,null,null,null,null,null,null,null,null,null,null,null,null,null,null,"Andel av"]
[null,null,null,null,null,null,null,null,null,null,null,null,null,null,"Tid indirekta patientaktiviteter/direkta patientkontakter år",null,null,null,"[tim: min]","patienttid"]
[null,null,null,null,null,null,null,null,null,null,null,null,null,null,"Tid per år för indirekt och direkt patient-arbete/kontakter",null,null,null,{"$f":"T31+T32","v":0},{"$f":"IF((S40+S41)=0,0,S40/(S40+S41))","v":0}]
[null,null,null,null,null,null,null,null,null,null,null,null,null,null,"Tid per år för indirekt patientarbete",null,null,null,{"$f":"T32","v":0}]
[]
[null,null,null,null,null,null,null,null,null,null,null,null,null,null,{"$f":"\"Utifrån \"&ROUND(U15,1)&\" kontakter per invånare\"","v":"Utifrån 0 kontakter per invånare"},null,null,null,"Antal","Andel"]
[null,null,null,null,null,null,null,null,null,null,null,null,null,null,{"$f":"\"och \" &F9&\" antal invånare\"","v":"och 0 antal invånare"},null,null,null,"Antal","Andel"]
[null,null,null,null,null,null,null,null,null,null,null,null,null,null,"Möjligt antal invånare som läkaren kan ha kont. patientansvar för",null,null,null,{"$f":"V26","v":0},{"$f":"IF(F9>0,S45/F9,0)","v":0}]

{"sheet":"Förklaringar för enhetsdel","index":3,"n_rows":34,"n_cols":12,"rows_kept":34,"cut":false,"hidden":false,"merged":[]}
[]
[null,"Förklaring för planeringsverktyg enhet"]
[null,"Den här kartläggningen avser de samlade läkarresurserna på enheten."]
[]
[null,"1. Antal listade på enheten",null,null,null,null,null,"6. Veckobaserad samverkan ",null,null,"(tim:min)"]
[null,"Antal invånare",null,null,null,null,null,"Intern konsultation och samverkan",null,null,null,"Teamarbete och samverkan med arbetskamrater"]
[null,null,null,null,null,null,null,"Extern konsulatation och samverkan",null,null,null,"Teamarbete och samverkan med samarbetspartner utanför enheten, exempelvis sjukhus"]
[null,"2. Produktiv tid",null,null,null,null,null,"Samverkan kommun",null,null,null,"Planerad och oplanerad tid för samverkan med kommunens verksamheter"]
[null,"Tjänstgöringsgrad",null,null,null,null,null,"Övrigt"]
[null,"Veckoarbetstid justerad",null,null,null,null,null,"Summa"]
[]
[null,"3. Patientkontakter totalt för enheten, per år",null,null,"Antal","Olika typer av patientkontakter enheten har per år.",null,"7. Veckobaserad aktiviteter",null,null,"(tim:min)","Beskriver tiden som läggs på aktiviteter som inte har en direkt koppling till patientmötet"]
[null,"Planerade besök, vårdcentral",null,null,null,null,null,"Rast"]
[null,"Planerade hembesök",null,null,null,null,null,"Möte (kring arbetsplatsen)"]
[null,"Akuta besök, vårdcentral",null,null,null,null,null,"Handledning",null,null,null,"Avsatt tid för att handleda eller få handledning"]
[null,"Akuta hembesök",null,null,null,null,null,"Sidouppdrag",null,null,null,"Det som enheten definerar mer omfattande uppdrag som det avsätts mer tid för, exempelvis BHV "]
[null,"Telefonärenden",null,null,null,null,null,"Professionell utveckling och fortbildning",null,null,null,"Läkarens individuella utbildning, fortbildning och utvecklingsaktiviteter"]
[null,"Digitala vårdmöten",null,null,null,"Videomöten med patient.",null,"Forskning och enhetens utvecklingsarbete",null,null,null,"Läkarens eventuella forskningstid samt deltagande i utvecklingsarbetet kopplat till enheten"]
[null,"Summa",null,null,null,null,null,"Övrigt"]
[null,null,null,null,null,null,null,"Summa"]
[null,"4. Tidsåtgång direkta patientkontakter ",null,null,"(tim:min)","Avsatt tid för respektive patientkontakter."]
[null,"Planerade besök, vårdcentral"]
[null,"Planerade hembesök",null,null,null,null,null,"Resultat"]
[null,"Akuta besök, vårdcentral"]
[null,"Akuta hembesök",null,null,null,null,null,"8. Summering enhetens tid per vecka"]
[null,"Telefonärenden",null,null,null,null,null,"Tid per vecka för direkta patientkontakter"]
[null,"Digitala vårdmöten",null,null,null,"Videomöten med patient.",null,"Veckobaserat indirekt patientarbete"]
[null,null,null,null,null,null,null,"Tid per vecka för direkta patientkontakter"]
[null,"5. Veckobaserat indirekt patientarbete",null,null,"(tim:min)","Uppgifter som är relaterade till det direkta patientmötet. Kan exempelvis vara att handlägga ett provsvar, följa upp remissvar eller skriva intyg.",null,"Veckobaserad samverkan"]
[null,"Indirekt patientarbete",null,null,null,null,null,"Veckobaserade aktiviteter"]
[null,null,null,null,null,null,null,"Summa"]
[]
[null,null,null,null,null,null,null,"9. Resultat "]
[null,null,null,null,null,null,null,"Antal invånare enheten kan erbjuda \nkonternuerligt patientanasvar för  "]

{"sheet":"Förklaringar för läkardel","index":4,"n_rows":34,"n_cols":12,"rows_kept":34,"cut":false,"hidden":false,"merged":[]}
[]
[null,"Förklaring för planeringsverktyg läkardel"]
[null,"Den här kartläggningen avser de samlade läkarresurserna på enheten."]
[]
[null,"1. Antal invånare kopplat till läkaren",null,null,null,null,null,"6. Veckobaserad samverkan ",null,null,"(tim:min)"]
[null,"Antal invånare",null,null,null,null,null,"Intern konsultation och samverkan",null,null,null,"Teamarbete och samverkan med arbetskamrater"]
[null,null,null,null,null,null,null,"Extern konsulatation och samverkan",null,null,null,"Teamarbete och samverkan med samarbetspartner utanför enheten, exempelvis sjukhus"]
[null,"2. Produktiv tid",null,null,null,null,null,"Samverkan kommun",null,null,null,"Planerad och oplanerad tid för samverkan med kommunens verksamheter"]
[null,"Tjänstgöringsgrad",null,null,null,null,null,"Övrigt"]
[null,"Tillgängligt antal veckor per år",null,null,null,null,null,"Summa"]
[null,"Veckoarbetstid justerad"]
[null,null,null,null,null,null,null,"7. Veckobaserad aktiviteter",null,null,"(tim:min)","Beskriver tiden som läggs på aktiviteter som inte har en direkt koppling till patientmötet"]
[null,"3. Patientkontakter totalt för läkaren, per år",null,null,"Antal","Olika typer av patientkontakter enheten har per år.",null,"Rast"]
[null,"Planerade besök, vårdcentral",null,null,null,null,null,"Möte (kring arbetsplatsen)"]
[null,"Planerade hembesök",null,null,null,null,null,"Handledning",null,null,null,"Avsatt tid för att handleda eller få handledning"]
[null,"Akuta besök, vårdcentral",null,null,null,null,null,"Sidouppdrag",null,null,null,"Det som enheten definerar mer omfattande uppdrag som det avsätts mer tid för, exempelvis BHV "]
[null,"Akuta hembesök",null,null,null,null,null,"Professionell utveckling och fortbildning",null,null,null,"Läkarens individuella utbildning, fortbildning och utvecklingsaktiviteter"]
[null,"Telefonärenden",null,null,null,null,null,"Forskning och enhetens utvecklingsarbete",null,null,null,"Läkarens eventuella forskningstid samt deltagande i utvecklingsarbetet kopplat till enheten"]
[null,"Digitala vårdmöten",null,null,null,"Videomöten med patient.",null,"Övrigt"]
[null,"Summa",null,null,null,null,null,"Summa"]
[]
[null,"4. Tidsåtgång direkta patientkontakter ",null,null,"(tim:min)","Avsatt tid för respektive patientkontakter."]
[null,"Planerade besök, vårdcentral",null,null,null,null,null,"Resultat"]
[null,"Planerade hembesök"]
[null,"Akuta besök, vårdcentral",null,null,null,null,null,"8. Summering läkarens tid per vecka"]
[null,"Akuta hembesök",null,null,null,null,null,"Tid per vecka för direkta patientkontakter"]
[null,"Telefonärenden",null,null,null,null,null,"Veckobaserat indirekt patientarbete"]
[null,"Digitala vårdmöten",null,null,null,"Videomöten med patient.",null,"Tid per vecka för direkta patientkontakter"]
[null,null,null,null,null,null,null,"Veckobaserad samverkan"]
[null,"5. Veckobaserat indirekt patientarbete",null,null,"(tim:min)","Uppgifter som är relaterade till det direkta patientmötet. Kan exempelvis vara att handlägga ett provsvar, följa upp remissvar eller skriva intyg.",null,"Veckobaserade aktiviteter"]
[null,"Indirekt patientarbete",null,null,null,null,null,"Summa"]
[]
[null,null,null,null,null,null,null,"9. Resultat "]
[null,null,null,null,null,null,null,"Antal invånare läkaren kan erbjuda \nkonternuerligt patientanasvar för  "]